Cogmind - Beta 13 @@@ ROGUE MODE // 2024.04.18 @ 22:10:22 Player: Copyrite Result: Destroyed by Y-45 Defender with Beam Rifle Performance ------------- Evolutions (0) 0 Regions Visited (3) 600 Robots Destroyed (12) 60 Value Destroyed (418) 418 Prototype IDs (0) 0 Alien Tech Used (0) 0 Bonus (0) 0 TOTAL SCORE: 1078 Bonus ------- None Cogmind --------- Core Integrity 0/250 Matter 257/300 Energy 265/265 System Corruption 0% Temperature Cool (27) Movement Rolling (140) Ox4 Location -10/Subcaves Parts ------- > --- POWER (1) -------- Improved Ion Engine > --- PROPULSION (2) --- Wheel Wheel > --- UTILITY (2) ------ Huge Storage Unit Signal Interpreter > --- WEAPON (2) ------- Barrage Gun Barrage Gun > --- INVENTORY (25) --- Light Ion Engine Light Treads Flight Unit Flight Unit Improved Heat Sink Small Storage Unit Subdweller Optics Improved Terrain Scanner Weapon Shielding Shotgun Shotgun Battle Cannon Grenade Launcher Subdweller Shrapnel Launcher Subdweller Shrapnel Launcher Flamer Flamer Enhanced Flamer Heavy Hammer Heavy Hammer Heavy Hammer Heavy Hammer Peak State ------------ > --- POWER ------------ Improved Ion Engine > --- PROPULSION ------- Wheel Wheel > --- UTILITY ---------- Huge Storage Unit Signal Interpreter > --- WEAPON ----------- Barrage Gun Barrage Gun > --- INVENTORY -------- Light Ion Engine Light Treads Flight Unit Flight Unit Improved Heat Sink Small Storage Unit Subdweller Optics Improved Terrain Scanner Weapon Shielding Shotgun Shotgun Battle Cannon Grenade Launcher Subdweller Shrapnel Launcher Subdweller Shrapnel Launcher Flamer Flamer Enhanced Flamer Heavy Hammer Heavy Hammer Heavy Hammer Heavy Hammer [Rating: 16] Favorites ----------- Power Improved Ion Engine Engine Improved Ion Engine Propulsion Wheel Treads Light Treads Wheel Wheel Utility Huge Storage Unit Storage Huge Storage Unit Processor Signal Interpreter Weapon Shotgun Energy Gun Small Laser Ballistic Gun Shotgun Launcher Rocket Launcher Impact Weapon Heavy Hammer Build | -11 -10 -10 -10 ------- Run | Yrd Mat Min Sub Slots Evolved . | . . . . Power . | . . . . Propulsion . | . . . . Utility . | . . . . Weapon . | . . . . Parts Attached 32 | 7 7 2 16 Power 4 | 1 1 . 2 Engine 4 | 1 1 . 2 Core . | . . . . Reactor . | . . . . Propulsion 9 | 2 2 1 4 Treads 4 | 2 . . 2 Leg . | . . . . Wheel 5 | . 2 1 2 Hover . | . . . . Flight . | . . . . Utility 3 | 1 2 . . Device . | . . . . Storage 2 | 1 1 . . Processor 1 | . 1 . . Hackware . | . . . . Protection . | . . . . Artifact . | . . . . Weapon 16 | 3 2 1 10 Energy Gun 2 | 2 . . . Energy Cannon . | . . . . Ballistic Gun 9 | 1 2 . 6 Ballistic Cannon . | . . . . Launcher 2 | . . . 2 Special Weapon . | . . . . Impact Weapon 3 | . . 1 2 Slashing Weapon . | . . . . Piercing Weapon . | . . . . Special Melee Weapon . | . . . . Unidentified Prototypes . | . . . . Parts Lost 6 | . . 1 5 Power 2 | . . . 2 Propulsion 3 | . . 1 2 Utility . | . . . . Weapon 1 | . . . 1 Highest Loss Streak 3 | . . 1 3 To Critical Strikes . | . . . . Average Slot Usage (%) 91 | . 82 98 92 Engine 13 | . 14 14 13 Treads 5 | . 16 . 3 Wheel 18 | . 11 26 17 Storage 14 | . 14 14 14 Processor 11 | . 1 14 14 Energy Gun 2 | . 16 . . Ballistic Gun 15 | . 6 26 15 Launcher 1 | . . . 2 Impact Weapon 7 | . . 1 10 Naked Turns . | . . . . Heaviest Build 94 | 10 93 93 94 Greatest Support 40 | 40 40 20 20 Greatest Overweight (x) 9 | . 4 9 9 Average Overweight (x) 5 | . 1 4 6 Largest Inventory Capacity 25 | 8 25 25 25 Average Capacity 22 | 7 14 25 25 Most Carried 22 | 5 18 20 22 Average Carried 16 | 2 9 19 18 Final Capacity 25 | 8 25 25 25 Final Carried 22 | 4 18 19 22 Class Distribution -------------------- 100% | Mutant Dominant Class ---------------- Mutant | -10/Materials Mutant | -10/Mines Mutant | -10/Subcaves Resources | -11 -10 -10 -10 ----------- Run | Yrd Mat Min Sub Matter Collected 717 | 232 38 105 342 Remotely . | . . . . Salvage Created 347 | . 40 105 202 Parts 23 | . 3 9 11 Haulers Intercepted . | . . . . Recyclers Shooed 1 | . . 1 . Parts Field Recycled . | . . . . Retrieved Matter . | . . . . Parts Self-Destructed . | . . . . Prevented . | . . . . Kills | -11 -10 -10 -10 ------- Run | Yrd Mat Min Sub Combat Hostiles Destroyed 10 | . 1 2 7 Melee 2 | . . . 2 Guns 3 | . 1 2 . AOE 5 | . . . 5 Classes Destroyed 5 | . 2 1 2 Tunneler 1 | . . 1 . Operator 1 | . 1 . . Grunt 3 | . 1 2 . Artisan 1 | . . . 1 Subdweller 7 | . . . 7 Best Kill Streak 3 | . 1 2 3 Combat Bots Only 3 | . 1 2 3 Max Kills in Single Turn 1 | . 1 1 1 Gunslinging . | . . . . Exploded 1 | . . . 1 Melee 1 | . . . 1 Uniques/NPCs Destroyed . | . . . . Combat | -11 -10 -10 -10 -------- Run | Yrd Mat Min Sub Hostile Shots Fired 71 | . 14 10 47 Missed 14 | . 4 2 8 Damage Taken 1182 | . 110 222 850 Core 259 | . 11 12 236 Absorbed by Shields . | . . . . Core Remaining (%) 100 | 100 . . . Volleys Fired 41 | . 10 6 25 Largest 2 | . 2 2 2 Hottest 80 | . 80 46 56 Shots Fired 74 | . 20 12 42 Gun 66 | . 20 12 34 Cannon . | . . . . Launcher 8 | . . . 8 Special . | . . . . Kinetic 46 | . . 12 34 Thermal 20 | . 20 . . Explosive 8 | . . . 8 Electromagnetic . | . . . . Robot Hit Streak 17 | . 5 7 17 Robot Miss Streak 2 | . 2 2 2 Penetration Max . | . . . . Secondary Targets . | . . . . Shots Hit Robots 70 | . 13 10 47 Core Hits 22 | . 2 7 13 Critical Kills . | . . . . Critical Parts Destroyed . | . . . . Critical Strikes . | . . . . Melee Attacks 15 | . . 5 10 Impact 15 | . . 5 10 Slashing . | . . . . Piercing . | . . . . Sneak Attacks . | . . . . Combat Hostiles . | . . . . Follow-up Attacks 2 | . . . 2 Damage Inflicted 1422 | . 146 155 1121 Guns 436 | . 141 155 140 Cannons . | . . . . Explosions 655 | . . . 655 Melee 326 | . . . 326 Ramming 5 | . 5 . . Kinetic 295 | . . 155 140 Thermal 141 | . 141 . . Explosive 655 | . . . 655 Electromagnetic . | . . . . Impact 326 | . . . 326 Slashing . | . . . . Piercing . | . . . . Highest Corruption . | . . . . Average Corruption . | . . . . Corruption Purged . | . . . . Corruption Blocked . | . . . . Overload Shots . | . . . . Overflow Damage 15 | . . . 15 Projectiles . | . . . . Explosions . | . . . . Melee 15 | . . . 15 Knockbacks 3 | . 1 . 2 Impact 3 | . 1 . 2 Kinetic . | . . . . Secondary . | . . . . Self-Inflicted Damage . | . . . . Shots . | . . . . Rammed . | . . . . Targets Rammed 1 | . 1 . . Kicked . | . . . . Crushed 1 | . 1 . . Highest Temperature 216 | . 216 2 . Average Temperature 100 | . 104 2 . Received Heat Transfer 354 | . 60 27 267 Siege Activations . | . . . . Robots Corrupted . | . . . . Combat Hostiles . | . . . . Parts Fried . | . . . . Impact Corruptions 2 | . . . 2 Robots Melted . | . . . . Combat Hostiles . | . . . . Parts Melted . | . . . . Heat Transferred 325 | . 325 . . Parts Sabotaged . | . . . . Parts Stolen . | . . . . Parts Stripped . | . . . . Power Chain Reactions . | . . . . Alert | -11 -10 -10 -10 ------- Run | Yrd Mat Min Sub Peak Influence 103 | . 86 103 . Initial 33 | . . 33 . Average 66 | . 66 83 . Maximum Alert Level . | . . . . Low Security (%) 100 | 100 100 100 . Level 1 . | . . . . Level 2 . | . . . . Level 3 . | . . . . Level 4 . | . . . . Level 5 . | . . . . High Security . | . . . . Max Security . | . . . . Squads Dispatched 1 | . 1 . . Investigation . | . . . . Extermination . | . . . . Reinforcement 1 | . 1 . . Assault . | . . . . Garrison . | . . . . Intercept . | . . . . Searches Triggered . | . . . . Construction Impeded . | . . . . Haulers Reinforced . | . . . . Active Scanning Responses . | . . . . Cargo Convoy Interrupts . | . . . . Stealth | -11 -10 -10 -10 --------- Run | Yrd Mat Min Sub Distress Signals . | . . . . Communications Jammed . | . . . . Distress Signals . | . . . . Times Spotted 28 | . 6 14 8 Peak Tracking Total 9 | . 2 9 2 Tactical Retreats 1 | . . 1 . Traps | -11 -10 -10 -10 ------- Run | Yrd Mat Min Sub Traps Triggered . | . . . . Indirectly . | . . . . Trap Hack Attempts . | . . . . Triggered . | . . . . Disarmed . | . . . . Reprogrammed . | . . . . Reused . | . . . . Traps Extracted . | . . . . Installed . | . . . . Triggered . | . . . . Machines | -11 -10 -10 -10 ---------- Run | Yrd Mat Min Sub Machines Disabled . | . . . . Max in Single Turn . | . . . . Machines Repaired . | . . . . Machines Dismantled . | . . . . Machines Sabotaged . | . . . . Overloaded Fab Kills . | . . . . Hacking | -11 -10 -10 -10 --------- Run | Yrd Mat Min Sub Machines Accessed 3 | . 3 . . Terminals 3 | . 3 . . Fabricators . | . . . . Repair Stations . | . . . . Recycling Units . | . . . . Scanalyzers . | . . . . Garrison Access . | . . . . Total Hacks 7 | . 7 . . Successful 3 | . 3 . . Failed 4 | . 4 . . Catastrophic 1 | . 1 . . Database Lockouts . | . . . . Manual 7 | . 7 . . Terminals 7 | . 7 . . Fabricators . | . . . . Repair Stations . | . . . . Recycling Units . | . . . . Scanalyzers . | . . . . Garrison Access . | . . . . Terminal Hacks 2 | . 2 . . Terminal Index 1 | . 1 . . Locate Traps 1 | . 1 . . Fabricator Hacks . | . . . . Repair Station Hacks . | . . . . Recycling Unit Hacks . | . . . . Scanalyzer . | . . . . Garrison Access Hacks . | . . . . Unauthorized Hacks 1 | . 1 . . Terminals 1 | . 1 . . Botnet 1 | . 1 . . Fabricators . | . . . . Repair Stations . | . . . . Recycling Units . | . . . . Scanalyzers . | . . . . Garrison Access . | . . . . Data Cores Recovered . | . . . . Used . | . . . . Hacking Detections 3 | . 3 . . Full Trace Events . | . . . . Feedback Events . | . . . . Feedback Blocked . | . . . . Robot Schematics Acquired . | . . . . Robots Built . | . . . . Authchips . | . . . . Time . | . . . . Total Robot Build Rating . | . . . . Part Schematics Acquired . | . . . . Parts Built . | . . . . Authchips . | . . . . Time . | . . . . Total Part Build Rating . | . . . . Parts Repaired . | . . . . Time . | . . . . Parts Recycled . | . . . . Recycled Matter . | . . . . Retrieved Matter . | . . . . Retrieved Components . | . . . . Parts Scanalyzed . | . . . . Part Schematics Acquired . | . . . . Parts Damaged . | . . . . Bothacking | -11 -10 -10 -10 ------------ Run | Yrd Mat Min Sub Used RIF Installer . | . . . . Robots Hacked . | . . . . Non-combat . | . . . . Combat . | . . . . Robot Hacks Applied . | . . . . Relay Couplers Released . | . . . . Fabnet Peak Effective % . | . . . . Robots Rewired . | . . . . Allies Hacked . | . . . . Hacks Repelled . | . . . . Allies | -11 -10 -10 -10 -------- Run | Yrd Mat Min Sub Total Allies . | . . . . Largest Group . | . . . . Highest-Rated Group . | . . . . Highest-Rated Ally . | . . . . Total Orders . | . . . . Ally Attacks . | . . . . Total Damage . | . . . . Kills . | . . . . Allies Corrupted . | . . . . Allies Melted . | . . . . Intel | -11 -10 -10 -10 ------- Run | Yrd Mat Min Sub Robot Analysis Total . | . . . . Derelict Logs Recovered 3 | . . 2 1 Drone Launches . | . . . . Drone Recoveries . | . . . . Exploration | -11 -10 -10 -10 ------------- Run | Yrd Mat Min Sub Turns Passed 1743 | 76 291 297 1079 Spaces Moved 816 | 41 147 115 513 Core 3 | 3 . . . Treads 115 | 38 77 . . Legs . | . . . . Wheels 698 | . 70 115 513 Hover . | . . . . Flight . | . . . . Fastest Speed 50 | 50 80 140 140 Average Speed 171 | 151 149 147 184 Slowest Speed 215 | 160 160 215 215 Overloaded Moves . | . . . . Propulsion Burnouts . | . . . . Robots Hopped . | . . . . Cave-ins Triggered . | . . . . Exploration Rate (%) 26 | 3 29 29 43 Regions Visited 3 Branch Regions 2 Pre-discovered Areas 2 | . . 1 1 Known Exits Taken 2 | . 1 1 . Unknown Exits Taken 1 | 1 . . . Scrap Searched 5 | . . . 5 Spaces Dug . | . . . . Terrain Destroyed 43 | . . . 43 Melee . | . . . . Projectile . | . . . . AOE 43 | . . . 43 Terrain Rammed . | . . . . Walls Destroyed . | . . . . Machines Disabled . | . . . . Actions | -11 -10 -10 -10 --------- Run | Yrd Mat Min Sub Total 1055 | 52 197 222 584 Wait 111 | . 12 89 10 Move 813 | 40 146 114 513 Hop . | . . . . Pick Up 34 | 5 16 4 9 Fast Attach 8 | 5 2 . 1 Attach 8 | 1 2 1 4 Detach 1 | . 1 . . Swap 16 | 1 3 1 11 Drop 9 | . 4 2 3 Fire 41 | . 10 6 25 Melee 13 | . . 5 8 Ram . | . . . . Kick . | . . . . Crush 1 | . 1 . . Escape Stasis . | . . . . Rewire . | . . . . Trap . | . . . . Miscellaneous . | . . . . Route ------- -11/Scrapyard -10/Materials -10/Mines (discovered 2 exits: *Mat / *Sub) -10/Subcaves (discovered 1 exit: *Mat) History --------- Turn | Location | Event 9 | -11/Scrapyard | Discovered new exit (range 16) 77 | -11/Scrapyard | Entered Materials 313 | -10/Materials | Build established: Mutant 326 | -10/Materials | Discovered new exit (range 4) 333 | -10/Materials | Identified exit to Mines 368 | -10/Materials | Entered Mines 410 | -10/Mines | Received a Rocket Launcher from a helpful Derelict 413 | -10/Mines | Discovered new exit (range 14) 470 | -10/Mines | Identified exit to Materials 478 | -10/Mines | Learned 2 Materials zone layouts 612 | -10/Mines | Assembled infested the area 617 | -10/Mines | Assisted by a Guerilla fighting off Assembled 657 | -10/Mines | Discovered new exit (range 3) 662 | -10/Mines | Identified exit to Subcaves 665 | -10/Mines | Entered Subcaves 674 | -10/Subcaves | Learned location of Zion (-6) 742 | -10/Subcaves | Ambushed by Subdweller buried in earth 919 | -10/Subcaves | Lost 3 parts (1p1n1w) 1098 | -10/Subcaves | Discovered new exit (range 9) 1133 | -10/Subcaves | Core integrity fell below 50% 1196 | -10/Subcaves | Identified exit to Materials 1359 | -10/Subcaves | Core integrity fell below 20% 1520 | -10/Subcaves | Shifting Twisted Machinery released Barrage Gun 1563 | -10/Subcaves | Shifting Twisted Machinery released Sub. Shrapnel Launcher 1744 | -10/Subcaves | Destroyed by Y-45 Defender with Beam Rifle Last Messages --------------- Acquired Barrage Gun. Dropped Shotgun. Barrage Gun falls loose from the Twisted Machinery. Dropped Lgt. Assault Rifle. Acquired Enh. Flamer. Sub. Shrapnel Launcher falls loose from the Twisted Machinery. Acquired Sub. Shrapnel Launcher. Acquired 7 matter. VQ-JQH(u) deconstructs Twisted Machinery. VQ-JQH(u) cries out in pain. VQ-JQH(u) destroyed. Acquired 19 matter. Acquired Wheel. Acquired Lgt. Ion Engine. H8-Q75(R): "SUBMAD!" Acquired 56 matter. Subatomizers dissect the Sub. Laser. Critical hit (Burn: +37). Map ----- +----------------------------------------------------+ | ????????# #??????????????????????????? | | ????????# ##?????????????????????????? | | ????????# # # # #?????????????????????????? | | ????????#### ""##### #?????????????????????????? | | ??????????## ""#???# ##?????????????????????????? | | ??????????# ##??## #####??????????????????????? | | ??????????# #?##" ## ####???????????????????? | | ?????????## #?# " #???????????????????? | | ???????### ##?# " "" #???????????????????? | | ??????## #??# " #???????????????????? | | ??????# ##?## ##???????????????????? | | ??????## ######## #????????????????????? | | ???????## ##?## #####?????????????????? | | ????????## ### ## #?????????????????? | | ?????????# ### #?????????????????? | | ?????????# "" "### ##?????????????????? | | ????????# ##""" " [ ###?????? ???????????? | | ???????# ####" ###??????? ???????????? | | ???????#### ##??## #??????? #???????????? | | ??????????##?????# " ##?????? ????????????? | | ?????????????????# " #?????? ??????????????? | | ????????????????##"" "" #???? ##???? ?????????? | | ????????????????# " #??? # ?????????? | | ????????????????# ## ### #??????????? | | ????????????????###?# #& Y #??????????? | | ????????????????????## &@[ #????????? | | ?????????????????????## = #??????????????? | | ??????????????????????# ########??????????????? | | ??????????????????????######?????????????????????? | | ?????????????????????????????????????????????????? | | ?????????????????????????????????????????????????? | | ?????????????????????????????????????????????????? | | ?????????????????????????????????????????????????? | | ?????????????????????????????????????????????????? | | ?????????????????????????????????????????????????? | | ?????????????????????????????????????????????????? | | ?????????????????????????????????????????????????? | | ?????????????????????????????????????????????????? | | ?????????????????????????????????????????????????? | | ?????????????????????????????????????????????????? | | ?????????????????????????????????????????????????? | | ?????????????????????????????????????????????????? | | ?????????????????????????????????????????????????? | | | | | | | | | | | | | | | +----------------------------------------------------+ Best States ------------- Heat Dissipation 25 Energy Generation 12 Energy Capacity 265 Matter Stores 300 Matter Capacity 300 Sight Range 16 Terrain Scan Density 10 Evasion (%) 40 Recoil Reduction 2 Item Schematics ----------------- None Robot Schematics ------------------ None Fabricated ------------ Nothing Alien Tech Used ----------------- None Achievements -------------- None Challenges ------------ None Game ------ Seed GrapheneHeavyTerminator Manual? 0 Play Time 00:11:56 Cumulative 34.6 hours Start 2024.04.18 @ 21:56:05 End 2024.04.18 @ 22:10:22 Sessions 1 Manual Loads 0 Difficulty Rogue Special Mode None Game No. 61 Rogue 61 Adventurer 0 Explorer 0 Win Type - Total 0 Types 0/0/0/0/0/0/0/0/0 Lore% 29 Gallery% 34 Achievement% 34 Wizard Run 0 Options --------- Layout 1 ASCII 0 Keyboard 0 Movement Numpad Keybinds 0 Fullscreen 1 Font 32/SmallcapsGlow Map View 50x35 Zoom Use 0% Tactical HUD 0 Map Filters NONE Filters NONE Steam 1 RUN: 27cab5b8-9c8b-4b30-a58e-ff744a2c4f9a